[Event "Late-Titled-Tuesday-Blitz-March-05-2024"]
[Site "Chess.com"]
[Date "2024.03.05"]
[Round "6"]
[White "fandebobbyfischer"]
[Black "giomar27"]
[Result "1-0"]
[WhiteElo "2645"]
[BlackElo "2412"]
[TimeControl "180+1"]
[EndTime "15:02:30 PST"]
[Termination "fandebobbyfischer won by checkmate"]

1. e4 {[%clk 0:03:00.6]} 1... g6 {[%clk 0:02:56.9]} 2. d4 {[%clk 0:03:00.7]}
2... Bg7 {[%clk 0:02:57.5]} 3. c3 {[%clk 0:03:01.6]} 3... a6 {[%clk 0:02:57.4]}
4. Bd3 {[%clk 0:03:02.2]} 4... d6 {[%clk 0:02:57.9]} 5. Nf3 {[%clk 0:03:03.1]}
5... Nd7 {[%clk 0:02:57.9]} 6. O-O {[%clk 0:03:03.6]} 6... b5 {[%clk 0:02:58.6]}
7. Re1 {[%clk 0:03:03.8]} 7... Bb7 {[%clk 0:02:59.2]} 8. a4 {[%clk 0:03:03.9]}
8... bxa4 {[%clk 0:02:55]} 9. Qxa4 {[%clk 0:03:04.8]} 9... e6 {[%clk 0:02:54.9]}
10. Bg5 {[%clk 0:03:04]} 10... Ne7 {[%clk 0:02:54.3]} 11. Nbd2 {[%clk
0:03:04.6]} 11... h6 {[%clk 0:02:54.8]} 12. Bh4 {[%clk 0:03:04.3]} 12... O-O
{[%clk 0:02:55.4]} 13. Bg3 {[%clk 0:03:04.4]} 13... Nb6 {[%clk 0:02:53.7]} 14.
Qc2 {[%clk 0:03:03.1]} 14... a5 {[%clk 0:02:30.9]} 15. h4 {[%clk 0:02:58.7]}
15... d5 {[%clk 0:02:10.9]} 16. h5 {[%clk 0:02:52.8]} 16... g5 {[%clk
0:02:03.1]} 17. e5 {[%clk 0:02:50.1]} 17... a4 {[%clk 0:01:56.5]} 18. Nh2 {[%clk
0:02:49.7]} 18... c5 {[%clk 0:01:45]} 19. Ng4 {[%clk 0:02:38]} 19... c4 {[%clk
0:01:42.7]} 20. Bh7+ {[%clk 0:02:37.8]} 20... Kh8 {[%clk 0:01:42.8]} 21. Nf6
{[%clk 0:02:36.2]} 21... Bxf6 {[%clk 0:01:41.6]} 22. exf6 {[%clk 0:02:37.1]}
22... Ng8 {[%clk 0:01:41.7]} 23. Bxg8 {[%clk 0:02:36.3]} 23... Kxg8 {[%clk
0:01:41]} 24. Nf3 {[%clk 0:02:36.2]} 24... Qxf6 {[%clk 0:01:36.4]} 25. Be5
{[%clk 0:02:36.3]} 25... Qf5 {[%clk 0:01:36.2]} 26. Qd2 {[%clk 0:02:36]} 26...
f6 {[%clk 0:01:35.2]} 27. Bd6 {[%clk 0:02:35.7]} 27... Rfd8 {[%clk 0:01:33.1]}
28. Bc7 {[%clk 0:02:35.6]} 28... Nd7 {[%clk 0:01:26.7]} 29. Bxd8 {[%clk
0:02:34.6]} 29... Rxd8 {[%clk 0:01:27.1]} 30. Rxa4 {[%clk 0:02:33.4]} 30... e5
{[%clk 0:01:27]} 31. Ra7 {[%clk 0:02:30.2]} 31... Bc6 {[%clk 0:01:25.2]} 32.
dxe5 {[%clk 0:02:25.5]} 32... fxe5 {[%clk 0:01:22.6]} 33. Qe3 {[%clk 0:02:11.7]}
33... Re8 {[%clk 0:01:14.4]} 34. Nd4 {[%clk 0:02:11]} 34... Qf6 {[%clk
0:01:09.5]} 35. Nxc6 {[%clk 0:02:11.1]} 35... Qxc6 {[%clk 0:01:10.4]} 36. Qf3
{[%clk 0:02:11.1]} 36... e4 {[%clk 0:01:04.2]} 37. Qf5 {[%clk 0:02:09]} 37...
Ne5 {[%clk 0:01:02]} 38. Qh7+ {[%clk 0:02:08]} 38... Kf8 {[%clk 0:01:01.7]} 39.
Qh8# {[%clk 0:02:08.9]} 1-0

[Event "Late-Titled-Tuesday-Blitz-March-05-2024"]
[Site "Chess.com"]
[Date "2024.03.05"]
[Round "6"]
[White "Veleamater"]
[Black "TheMagician"]
[Result "1-0"]
[WhiteElo "2324"]
[BlackElo "2204"]
[TimeControl "180+1"]
[EndTime "15:02:34 PST"]
[Termination "Veleamater won by checkmate"]

1. g3 {[%clk 0:03:00.9]} 1... d5 {[%clk 0:02:59.3]} 2. Bg2 {[%clk 0:03:01.3]}
2... c6 {[%clk 0:02:59.3]} 3. d3 {[%clk 0:03:01.8]} 3... h6 {[%clk 0:02:59.4]}
4. Nf3 {[%clk 0:03:02.2]} 4... Bf5 {[%clk 0:02:59.3]} 5. O-O {[%clk 0:03:02.6]}
5... Nf6 {[%clk 0:02:58.8]} 6. Nc3 {[%clk 0:03:03.2]} 6... e6 {[%clk 0:02:58.8]}
7. h3 {[%clk 0:03:02.8]} 7... Be7 {[%clk 0:02:58.8]} 8. Ne5 {[%clk 0:03:02.9]}
8... O-O {[%clk 0:02:53.3]} 9. e4 {[%clk 0:03:03.1]} 9... Bh7 {[%clk 0:02:41.6]}
10. f4 {[%clk 0:03:00.9]} 10... dxe4 {[%clk 0:02:30.2]} 11. dxe4 {[%clk
0:02:59.8]} 11... Qb6+ {[%clk 0:02:28.7]} 12. Kh2 {[%clk 0:02:59.5]} 12... Rd8
{[%clk 0:02:28.6]} 13. Nd3 {[%clk 0:02:59.5]} 13... Bb4 {[%clk 0:02:17.2]} 14.
Qe1 {[%clk 0:02:56.9]} 14... Bxc3 {[%clk 0:02:08.9]} 15. bxc3 {[%clk 0:02:55.1]}
15... Nbd7 {[%clk 0:01:55.5]} 16. e5 {[%clk 0:02:50.4]} 16... Nd5 {[%clk
0:01:49.6]} 17. c4 {[%clk 0:02:48.1]} 17... Bxd3 {[%clk 0:01:46.5]} 18. cxd3
{[%clk 0:02:45.5]} 18... Ne7 {[%clk 0:01:46.1]} 19. Be3 {[%clk 0:02:43]} 19...
c5 {[%clk 0:01:42.7]} 20. Rb1 {[%clk 0:02:42.2]} 20... Qa6 {[%clk 0:01:37]} 21.
Rxb7 {[%clk 0:02:41.2]} 21... Rac8 {[%clk 0:01:32.7]} 22. Rf2 {[%clk 0:02:38.7]}
22... Nf5 {[%clk 0:01:32.4]} 23. Bc1 {[%clk 0:02:34.1]} 23... Nb6 {[%clk
0:01:30.9]} 24. g4 {[%clk 0:02:22.6]} 24... Nh4 {[%clk 0:01:30.6]} 25. Bh1
{[%clk 0:02:19.3]} 25... Rxd3 {[%clk 0:01:28.3]} 26. Rc2 {[%clk 0:02:17]} 26...
Nf3+ {[%clk 0:01:25.8]} 27. Bxf3 {[%clk 0:02:16.7]} 27... Rxf3 {[%clk
0:01:26.3]} 28. Qe4 {[%clk 0:02:16.7]} 28... Rf1 {[%clk 0:01:13.3]} 29. f5
{[%clk 0:02:14.7]} 29... exf5 {[%clk 0:01:12.6]} 30. gxf5 {[%clk 0:02:14.7]}
30... Re8 {[%clk 0:01:07.3]} 31. e6 {[%clk 0:02:11.4]} 31... Rxf5 {[%clk
0:01:05.2]} 32. exf7+ {[%clk 0:02:08.8]} 32... Kh7 {[%clk 0:00:56.5]} 33. Qxf5+
{[%clk 0:02:08.2]} 33... g6 {[%clk 0:00:55.8]} 34. Qxg6+ {[%clk 0:02:08.3]}
34... Kxg6 {[%clk 0:00:52.7]} 35. fxe8=Q+ {[%clk 0:02:08.5]} 35... Kf5 {[%clk
0:00:52.2]} 36. Rf2# {[%clk 0:02:08.2]} 1-0

[Event "Late-Titled-Tuesday-Blitz-March-05-2024"]
[Site "Chess.com"]
[Date "2024.03.05"]
[Round "6"]
[White "trriinu"]
[Black "WPWPWP-2015"]
[Result "0-1"]
[WhiteElo "2268"]
[BlackElo "2504"]
[TimeControl "180+1"]
[EndTime "15:02:41 PST"]
[Termination "WPWPWP-2015 won by resignation"]

1. e4 {[%clk 0:03:00.9]} 1... c5 {[%clk 0:02:50.3]} 2. Nf3 {[%clk 0:03:00.5]}
2... d6 {[%clk 0:02:49.9]} 3. Bb5+ {[%clk 0:03:00.9]} 3... Nc6 {[%clk
0:02:47.8]} 4. O-O {[%clk 0:03:00.1]} 4... Nf6 {[%clk 0:02:46.6]} 5. Re1 {[%clk
0:03:00.4]} 5... Qb6 {[%clk 0:02:45.2]} 6. Bf1 {[%clk 0:02:57.8]} 6... e5 {[%clk
0:02:44]} 7. c3 {[%clk 0:02:58.1]} 7... Be7 {[%clk 0:02:43.9]} 8. Na3 {[%clk
0:02:57.7]} 8... O-O {[%clk 0:02:43.5]} 9. Nc4 {[%clk 0:02:54.8]} 9... Qd8
{[%clk 0:02:43.5]} 10. d4 {[%clk 0:02:53.7]} 10... cxd4 {[%clk 0:02:35.9]} 11.
cxd4 {[%clk 0:02:52.9]} 11... Bg4 {[%clk 0:02:34.2]} 12. dxe5 {[%clk 0:02:24]}
12... dxe5 {[%clk 0:02:19.1]} 13. Qxd8 {[%clk 0:02:19.5]} 13... Rfxd8 {[%clk
0:02:20]} 14. Nfxe5 {[%clk 0:02:17.2]} 14... Nxe5 {[%clk 0:02:20.9]} 15. Nxe5
{[%clk 0:02:17.6]} 15... Bb4 {[%clk 0:02:19.3]} 16. Re3 {[%clk 0:02:06.3]} 16...
Rd1 {[%clk 0:02:17]} 17. Rd3 {[%clk 0:01:09.6]} 17... Re1 {[%clk 0:02:10.8]} 18.
h3 {[%clk 0:00:44.4]} 18... Be2 {[%clk 0:02:07.8]} 19. Rb3 {[%clk 0:00:13.7]}
19... Rxf1+ {[%clk 0:02:02.7]} 20. Kh2 {[%clk 0:00:13.3]} 20... Bd6 {[%clk
0:02:03.3]} 0-1

[Event "Late-Titled-Tuesday-Blitz-March-05-2024"]
[Site "Chess.com"]
[Date "2024.03.05"]
[Round "6"]
[White "picturesquecheck"]
[Black "aranibos"]
[Result "1-0"]
[WhiteElo "2409"]
[BlackElo "2269"]
[TimeControl "180+1"]
[EndTime "15:02:44 PST"]
[Termination "picturesquecheck won by checkmate"]

1. e4 {[%clk 0:02:57.4]} 1... g6 {[%clk 0:02:58.9]} 2. d4 {[%clk 0:02:56.8]}
2... Bg7 {[%clk 0:02:59.2]} 3. Nf3 {[%clk 0:02:56]} 3... d6 {[%clk 0:02:59.2]}
4. Nc3 {[%clk 0:02:53.7]} 4... Nd7 {[%clk 0:02:59.3]} 5. Be2 {[%clk 0:02:51.3]}
5... a6 {[%clk 0:02:59.2]} 6. O-O {[%clk 0:02:51.1]} 6... e6 {[%clk 0:02:59.2]}
7. d5 {[%clk 0:02:50.6]} 7... e5 {[%clk 0:02:57.3]} 8. Bg5 {[%clk 0:02:49.7]}
8... f6 {[%clk 0:02:56.7]} 9. Be3 {[%clk 0:02:49.8]} 9... Ne7 {[%clk 0:02:53.3]}
10. Ne1 {[%clk 0:02:49.4]} 10... O-O {[%clk 0:02:53.5]} 11. f3 {[%clk
0:02:49.7]} 11... Nb6 {[%clk 0:02:45.3]} 12. a4 {[%clk 0:02:48.5]} 12... Bd7
{[%clk 0:02:40.6]} 13. a5 {[%clk 0:02:47.3]} 13... Nbc8 {[%clk 0:02:41]} 14. b4
{[%clk 0:02:47.5]} 14... c6 {[%clk 0:02:38.9]} 15. Bc4 {[%clk 0:02:42.7]} 15...
Kh8 {[%clk 0:02:37.9]} 16. dxc6 {[%clk 0:02:42.1]} 16... bxc6 {[%clk 0:02:37.5]}
17. Qd3 {[%clk 0:02:35.8]} 17... f5 {[%clk 0:02:32.1]} 18. Bxa6 {[%clk
0:02:18.7]} 18... fxe4 {[%clk 0:02:28.4]} 19. fxe4 {[%clk 0:02:19.6]} 19...
Rxf1+ {[%clk 0:02:24.1]} 20. Qxf1 {[%clk 0:02:20.5]} 20... d5 {[%clk 0:02:22.3]}
21. Bxc8 {[%clk 0:02:13.1]} 21... Rxc8 {[%clk 0:02:18.3]} 22. Bc5 {[%clk
0:02:10]} 22... d4 {[%clk 0:02:16.9]} 23. Na4 {[%clk 0:02:05.2]} 23... Ng8
{[%clk 0:02:10]} 24. a6 {[%clk 0:02:00.2]} 24... Ra8 {[%clk 0:01:53.1]} 25. a7
{[%clk 0:01:56.9]} 25... Qc7 {[%clk 0:01:48.3]} 26. Qa6 {[%clk 0:01:50.1]} 26...
Bc8 {[%clk 0:01:48.6]} 27. Qa5 {[%clk 0:01:45.4]} 27... Qxa5 {[%clk 0:01:43.2]}
28. bxa5 {[%clk 0:01:46.3]} 28... Bb7 {[%clk 0:01:35.9]} 29. Bb6 {[%clk
0:01:34.2]} 29... Bf8 {[%clk 0:01:30.3]} 30. Nd3 {[%clk 0:01:33.4]} 30... Ba6
{[%clk 0:01:29.9]} 31. Nxe5 {[%clk 0:01:27.6]} 31... Bb5 {[%clk 0:01:18.5]} 32.
Bxd4 {[%clk 0:01:21.6]} 32... Bg7 {[%clk 0:01:18.9]} 33. Nf7# {[%clk 0:01:20.4]}
1-0

[Event "Late-Titled-Tuesday-Blitz-March-05-2024"]
[Site "Chess.com"]
[Date "2024.03.05"]
[Round "6"]
[White "Slovineanu"]
[Black "MaiqMaster"]
[Result "1-0"]
[WhiteElo "2488"]
[BlackElo "2322"]
[TimeControl "180+1"]
[EndTime "15:02:55 PST"]
[Termination "Slovineanu won by resignation"]

1. d4 {[%clk 0:03:00.1]} 1... d5 {[%clk 0:02:59.2]} 2. Nf3 {[%clk 0:03:00]} 2...
Nf6 {[%clk 0:02:59]} 3. c4 {[%clk 0:03:00.1]} 3... e6 {[%clk 0:02:58.3]} 4. e3
{[%clk 0:02:59.9]} 4... a6 {[%clk 0:02:56.6]} 5. b3 {[%clk 0:02:59.9]} 5... c5
{[%clk 0:02:50.4]} 6. Bd3 {[%clk 0:02:59]} 6... Nc6 {[%clk 0:02:48.9]} 7. Bb2
{[%clk 0:02:58]} 7... dxc4 {[%clk 0:02:40.4]} 8. bxc4 {[%clk 0:02:57.9]} 8...
cxd4 {[%clk 0:02:40.5]} 9. exd4 {[%clk 0:02:57.9]} 9... Bb4+ {[%clk 0:02:40.6]}
10. Nbd2 {[%clk 0:02:57.7]} 10... O-O {[%clk 0:02:37.7]} 11. O-O {[%clk
0:02:57.3]} 11... Bd7 {[%clk 0:02:23.2]} 12. Qe2 {[%clk 0:02:53.8]} 12... Qc7
{[%clk 0:02:12.7]} 13. Ne4 {[%clk 0:02:51.6]} 13... Nxe4 {[%clk 0:02:10.9]} 14.
Qxe4 {[%clk 0:02:51.2]} 14... f5 {[%clk 0:02:09.1]} 15. Qe2 {[%clk 0:02:48.2]}
15... Rae8 {[%clk 0:02:06.6]} 16. Rac1 {[%clk 0:02:38.6]} 16... Bd6 {[%clk
0:02:04.4]} 17. Rfe1 {[%clk 0:02:25.4]} 17... Qb8 {[%clk 0:01:56.9]} 18. h3
{[%clk 0:02:24.5]} 18... Bb4 {[%clk 0:01:44.2]} 19. Red1 {[%clk 0:02:22.1]}
19... Bd6 {[%clk 0:01:39.2]} 20. a3 {[%clk 0:01:37.5]} 20... e5 {[%clk
0:01:29.7]} 21. dxe5 {[%clk 0:01:36.9]} 21... Nxe5 {[%clk 0:01:30.6]} 22. c5
{[%clk 0:01:36.1]} 22... Nxf3+ {[%clk 0:01:25.3]} 23. Qxf3 {[%clk 0:01:33.7]}
23... Bc6 {[%clk 0:01:17.6]} 24. Qh5 {[%clk 0:01:33.2]} 24... Bh2+ {[%clk
0:01:06.5]} 25. Kh1 {[%clk 0:01:30.2]} 25... g6 {[%clk 0:00:57.2]} 26. Bc4+
{[%clk 0:01:25]} 26... Rf7 {[%clk 0:00:49.8]} 27. Bxf7+ {[%clk 0:01:24.8]} 1-0

[Event "Late-Titled-Tuesday-Blitz-March-05-2024"]
[Site "Chess.com"]
[Date "2024.03.05"]
[Round "6"]
[White "Genghis_K"]
[Black "TheCavemanChess"]
[Result "1-0"]
[WhiteElo "2940"]
[BlackElo "2733"]
[TimeControl "180+1"]
[EndTime "15:02:56 PST"]
[Termination "Genghis_K won by checkmate"]

1. e4 {[%clk 0:02:39.9]} 1... c5 {[%clk 0:02:59.8]} 2. Nf3 {[%clk 0:02:39.9]}
2... d6 {[%clk 0:03:00.4]} 3. d4 {[%clk 0:02:40.4]} 3... cxd4 {[%clk 0:03:01.3]}
4. Nxd4 {[%clk 0:02:41]} 4... Nf6 {[%clk 0:03:02.1]} 5. Nc3 {[%clk 0:02:41.6]}
5... a6 {[%clk 0:03:02.8]} 6. Be2 {[%clk 0:02:41.8]} 6... e6 {[%clk 0:02:59.4]}
7. g4 {[%clk 0:02:41.5]} 7... Be7 {[%clk 0:02:57.4]} 8. g5 {[%clk 0:02:41.7]}
8... Nfd7 {[%clk 0:02:58.1]} 9. h4 {[%clk 0:02:42.3]} 9... b5 {[%clk 0:02:58.6]}
10. a3 {[%clk 0:02:42.9]} 10... Bb7 {[%clk 0:02:59]} 11. Rg1 {[%clk 0:02:39.4]}
11... g6 {[%clk 0:02:35.5]} 12. f4 {[%clk 0:02:28.7]} 12... h6 {[%clk
0:01:50.7]} 13. f5 {[%clk 0:02:21.5]} 13... e5 {[%clk 0:01:51.1]} 14. fxg6
{[%clk 0:02:05.9]} 14... exd4 {[%clk 0:01:51.2]} 15. gxf7+ {[%clk 0:02:06.1]}
15... Kxf7 {[%clk 0:01:49.3]} 16. Bh5+ {[%clk 0:02:06.3]} 16... Kg8 {[%clk
0:01:33]} 17. gxh6+ {[%clk 0:02:05.3]} 17... Kf8 {[%clk 0:01:33.5]} 18. Qg4
{[%clk 0:01:57.3]} 18... Bxh4+ {[%clk 0:01:12.4]} 19. Kd1 {[%clk 0:01:56.4]}
19... Bf6 {[%clk 0:01:11.9]} 20. h7 {[%clk 0:01:56.3]} 20... Ne5 {[%clk
0:01:00.5]} 21. Qe6 {[%clk 0:01:51.1]} 21... Bg7 {[%clk 0:00:19.6]} 22. Rxg7
{[%clk 0:01:47.8]} 22... Kxg7 {[%clk 0:00:13.6]} 23. Qh6# {[%clk 0:01:47.9]} 1-0

[Event "Late-Titled-Tuesday-Blitz-March-05-2024"]
[Site "Chess.com"]
[Date "2024.03.05"]
[Round "6"]
[White "katharinareinecke"]
[Black "Fjal"]
[Result "0-1"]
[WhiteElo "1981"]
[BlackElo "2296"]
[TimeControl "180+1"]
[EndTime "15:03:04 PST"]
[Termination "Fjal won by resignation"]

1. e4 {[%clk 0:03:00.9]} 1... d6 {[%clk 0:02:55.6]} 2. d4 {[%clk 0:02:55.8]}
2... Nf6 {[%clk 0:02:49.1]} 3. Nc3 {[%clk 0:02:54.6]} 3... g6 {[%clk 0:02:49]}
4. Bd3 {[%clk 0:02:52.6]} 4... Bg7 {[%clk 0:02:49.4]} 5. Nge2 {[%clk 0:02:50.5]}
5... O-O {[%clk 0:02:48.8]} 6. O-O {[%clk 0:02:50.3]} 6... c5 {[%clk 0:02:49.4]}
7. d5 {[%clk 0:02:28.2]} 7... e5 {[%clk 0:02:48.8]} 8. f4 {[%clk 0:02:18.9]}
8... exf4 {[%clk 0:02:48.1]} 9. Nxf4 {[%clk 0:02:09]} 9... a6 {[%clk 0:02:42.7]}
10. a4 {[%clk 0:02:06.5]} 10... Nbd7 {[%clk 0:02:41.1]} 11. Kh1 {[%clk
0:02:00.1]} 11... Ne5 {[%clk 0:02:41.3]} 12. h3 {[%clk 0:01:50.8]} 12... Qe7
{[%clk 0:02:24.6]} 13. Bd2 {[%clk 0:01:41.2]} 13... Bd7 {[%clk 0:02:18.5]} 14.
Qe2 {[%clk 0:01:39.5]} 14... Rfc8 {[%clk 0:02:11.1]} 15. Rae1 {[%clk 0:01:22.5]}
15... c4 {[%clk 0:02:08.6]} 16. Bxc4 {[%clk 0:00:32.4]} 16... Nxc4 {[%clk
0:02:00.5]} 17. Bc1 {[%clk 0:00:28.6]} 17... b5 {[%clk 0:02:00.2]} 18. axb5
{[%clk 0:00:27.3]} 18... axb5 {[%clk 0:02:01.1]} 19. b3 {[%clk 0:00:24.2]} 19...
Ne5 {[%clk 0:01:59.3]} 20. Nxb5 {[%clk 0:00:22.4]} 20... Bxb5 {[%clk 0:01:54.6]}
21. Qxb5 {[%clk 0:00:21.1]} 21... Rxc2 {[%clk 0:01:54.9]} 22. Be3 {[%clk
0:00:14.7]} 22... Nxe4 {[%clk 0:01:51.1]} 23. Bd4 {[%clk 0:00:13.7]} 23... Ng3+
{[%clk 0:01:50.6]} 24. Kh2 {[%clk 0:00:12.7]} 24... Nxf1+ {[%clk 0:01:49.1]} 25.
Rxf1 {[%clk 0:00:13.6]} 0-1

[Event "Late-Titled-Tuesday-Blitz-March-05-2024"]
[Site "Chess.com"]
[Date "2024.03.05"]
[Round "6"]
[White "Binary010"]
[Black "Burgsvik"]
[Result "1-0"]
[WhiteElo "2806"]
[BlackElo "2373"]
[TimeControl "180+1"]
[EndTime "15:03:27 PST"]
[Termination "Binary010 won by resignation"]

1. d4 {[%clk 0:03:00.9]} 1... c5 {[%clk 0:03:00.3]} 2. d5 {[%clk 0:03:01.2]}
2... d6 {[%clk 0:02:59.6]} 3. e4 {[%clk 0:03:01.5]} 3... g6 {[%clk 0:03:00.1]}
4. Bb5+ {[%clk 0:02:58.5]} 4... Bd7 {[%clk 0:02:58.6]} 5. a4 {[%clk 0:02:59.2]}
5... Na6 {[%clk 0:02:58.6]} 6. Nf3 {[%clk 0:02:56.8]} 6... Nc7 {[%clk
0:02:58.7]} 7. Bd3 {[%clk 0:02:52]} 7... Bg7 {[%clk 0:02:57]} 8. O-O {[%clk
0:02:51.9]} 8... Nh6 {[%clk 0:02:57.1]} 9. h3 {[%clk 0:02:52]} 9... a6 {[%clk
0:02:57.1]} 10. a5 {[%clk 0:02:51.8]} 10... f6 {[%clk 0:02:54.3]} 11. c4 {[%clk
0:02:47.5]} 11... Nf7 {[%clk 0:02:54.3]} 12. Nc3 {[%clk 0:02:43.5]} 12... Ne5
{[%clk 0:02:54.3]} 13. Nxe5 {[%clk 0:02:43.9]} 13... fxe5 {[%clk 0:02:54.1]} 14.
Na4 {[%clk 0:02:28.6]} 14... O-O {[%clk 0:02:49.1]} 15. Nb6 {[%clk 0:02:28.6]}
15... Rb8 {[%clk 0:02:49.2]} 16. b4 {[%clk 0:02:29.2]} 16... cxb4 {[%clk
0:02:47.6]} 17. Bd2 {[%clk 0:02:27.8]} 17... e6 {[%clk 0:02:40.2]} 18. Bxb4
{[%clk 0:02:25.9]} 18... exd5 {[%clk 0:02:37.6]} 19. Bxd6 {[%clk 0:02:21.8]}
19... Rf7 {[%clk 0:02:17.1]} 20. Nxd5 {[%clk 0:02:14.3]} 20... Nxd5 {[%clk
0:02:15]} 21. Bxb8 {[%clk 0:02:14.2]} 21... Nf4 {[%clk 0:02:11.8]} 22. Ba7
{[%clk 0:02:03.4]} 22... Bxh3 {[%clk 0:02:10.4]} 23. Bc2 {[%clk 0:01:45.2]}
23... Qg5 {[%clk 0:02:04.5]} 24. g3 {[%clk 0:01:45.4]} 24... Bxf1 {[%clk
0:02:03.7]} 25. Qxf1 {[%clk 0:01:36]} 25... Ne6 {[%clk 0:02:01]} 26. Be3 {[%clk
0:01:30.3]} 26... Qf6 {[%clk 0:01:56.9]} 27. c5 {[%clk 0:01:30]} 27... Nd4
{[%clk 0:01:56.7]} 28. Bxd4 {[%clk 0:01:28.3]} 28... exd4 {[%clk 0:01:56.7]} 29.
Bb3 {[%clk 0:01:28.9]} 29... Qe5 {[%clk 0:01:54.3]} 30. Qc4 {[%clk 0:01:25.5]}
30... Qe7 {[%clk 0:01:52.6]} 31. f4 {[%clk 0:01:17.9]} 31... Kf8 {[%clk
0:01:45.7]} 32. Qxf7+ {[%clk 0:01:17.3]} 32... Qxf7 {[%clk 0:01:46]} 33. Bxf7
{[%clk 0:01:18]} 33... Kxf7 {[%clk 0:01:46.4]} 34. Rb1 {[%clk 0:01:17.1]} 34...
Bf8 {[%clk 0:01:43.3]} 35. Rxb7+ {[%clk 0:01:16.7]} 35... Ke6 {[%clk 0:01:43]}
36. Rb6+ {[%clk 0:01:10]} 36... Kd7 {[%clk 0:01:42.9]} 37. c6+ {[%clk
0:01:08.8]} 37... Kc7 {[%clk 0:01:43]} 38. Rxa6 {[%clk 0:01:08.8]} 38... Bc5
{[%clk 0:01:42.2]} 39. Kf1 {[%clk 0:01:08.7]} 39... h5 {[%clk 0:01:38.8]} 40.
Ke2 {[%clk 0:01:07.8]} 40... Bb4 {[%clk 0:01:29.6]} 41. e5 {[%clk 0:01:06.6]}
41... Bc5 {[%clk 0:01:22.7]} 42. Ra8 {[%clk 0:00:57.6]} 42... Kxc6 {[%clk
0:01:22]} 43. Rc8+ {[%clk 0:00:57.8]} 43... Kd5 {[%clk 0:01:21.8]} 44. Rxc5+
{[%clk 0:00:57]} 1-0

[Event "Late-Titled-Tuesday-Blitz-March-05-2024"]
[Site "Chess.com"]
[Date "2024.03.05"]
[Round "6"]
[White "DonBroca"]
[Black "Ducke13"]
[Result "0-1"]
[WhiteElo "2153"]
[BlackElo "2389"]
[TimeControl "180+1"]
[EndTime "15:03:41 PST"]
[Termination "Ducke13 won by resignation"]

1. e4 {[%clk 0:03:00.9]} 1... c5 {[%clk 0:02:57.3]} 2. c3 {[%clk 0:02:59.3]}
2... d5 {[%clk 0:02:57]} 3. exd5 {[%clk 0:02:59.9]} 3... Qxd5 {[%clk 0:02:57.3]}
4. d4 {[%clk 0:03:00.3]} 4... Nc6 {[%clk 0:02:57.9]} 5. Nf3 {[%clk 0:03:00.2]}
5... Bf5 {[%clk 0:02:58]} 6. Be2 {[%clk 0:03:00.9]} 6... cxd4 {[%clk 0:02:50.4]}
7. cxd4 {[%clk 0:02:26.7]} 7... Bxb1 {[%clk 0:02:48.8]} 8. Rxb1 {[%clk
0:02:23.1]} 8... Nf6 {[%clk 0:02:49.3]} 9. O-O {[%clk 0:02:16.1]} 9... e6 {[%clk
0:02:49.3]} 10. Bf4 {[%clk 0:02:00.8]} 10... Be7 {[%clk 0:02:38.5]} 11. Qa4
{[%clk 0:01:48.9]} 11... O-O {[%clk 0:02:37.1]} 12. Rfd1 {[%clk 0:01:37.2]}
12... Rfd8 {[%clk 0:02:34.4]} 13. Bb5 {[%clk 0:00:57.6]} 13... Qf5 {[%clk
0:02:31.7]} 14. Be5 {[%clk 0:00:49.9]} 14... Rac8 {[%clk 0:02:17.4]} 15. Rbc1
{[%clk 0:00:45.7]} 15... Ng4 {[%clk 0:01:56.3]} 16. h3 {[%clk 0:00:19.9]} 16...
Ngxe5 {[%clk 0:01:55.5]} 17. dxe5 {[%clk 0:00:20.2]} 17... Nxe5 {[%clk
0:01:48.6]} 18. Nxe5 {[%clk 0:00:19.6]} 18... Qxe5 {[%clk 0:01:46.4]} 19. Rxc8
{[%clk 0:00:17.4]} 19... Rxc8 {[%clk 0:01:45.9]} 20. Qxa7 {[%clk 0:00:17.4]}
20... Qxb5 {[%clk 0:01:44.5]} 21. a4 {[%clk 0:00:14.6]} 21... Qxb2 {[%clk
0:01:40]} 22. a5 {[%clk 0:00:13.2]} 22... Qb5 {[%clk 0:01:14.1]} 23. Rd7 {[%clk
0:00:10.3]} 23... Qxd7 {[%clk 0:01:11.9]} 0-1

[Event "Late-Titled-Tuesday-Blitz-March-05-2024"]
[Site "Chess.com"]
[Date "2024.03.05"]
[Round "6"]
[White "OrtizAnahi2001"]
[Black "lamomiajunior"]
[Result "0-1"]
[WhiteElo "2539"]
[BlackElo "2719"]
[TimeControl "180+1"]
[EndTime "15:03:50 PST"]
[Termination "lamomiajunior won by resignation"]

1. d4 {[%clk 0:02:56.9]} 1... g6 {[%clk 0:02:59.6]} 2. e4 {[%clk 0:02:56.5]}
2... Bg7 {[%clk 0:03:00.2]} 3. Nf3 {[%clk 0:02:55.7]} 3... d6 {[%clk 0:03:00.8]}
4. c3 {[%clk 0:02:56.2]} 4... Nc6 {[%clk 0:03:01.2]} 5. Be3 {[%clk 0:02:56.2]}
5... e5 {[%clk 0:03:01.8]} 6. Be2 {[%clk 0:02:56.3]} 6... Nge7 {[%clk
0:03:02.1]} 7. Qd2 {[%clk 0:02:51.2]} 7... O-O {[%clk 0:03:01.2]} 8. Bh6 {[%clk
0:02:50.7]} 8... f5 {[%clk 0:03:01.1]} 9. Bxg7 {[%clk 0:02:50]} 9... Kxg7 {[%clk
0:03:02]} 10. exf5 {[%clk 0:02:47.9]} 10... e4 {[%clk 0:02:57.6]} 11. Nh4 {[%clk
0:02:32]} 11... Nxf5 {[%clk 0:02:56]} 12. Nxf5+ {[%clk 0:02:31.4]} 12... Bxf5
{[%clk 0:02:56.7]} 13. Na3 {[%clk 0:02:27.7]} 13... d5 {[%clk 0:02:56.5]} 14.
Nc2 {[%clk 0:02:26.6]} 14... Ne7 {[%clk 0:02:56.1]} 15. Ne3 {[%clk 0:02:26.5]}
15... c6 {[%clk 0:02:55.8]} 16. O-O {[%clk 0:02:21]} 16... Qd7 {[%clk
0:02:55.4]} 17. Rac1 {[%clk 0:02:20.3]} 17... b5 {[%clk 0:02:43.4]} 18. b3
{[%clk 0:02:14.8]} 18... a6 {[%clk 0:02:40.5]} 19. c4 {[%clk 0:01:37.7]} 19...
h5 {[%clk 0:02:36]} 20. cxd5 {[%clk 0:01:36.1]} 20... cxd5 {[%clk 0:02:33.1]}
21. Rc5 {[%clk 0:01:35.8]} 21... Rac8 {[%clk 0:02:29.9]} 22. Rfc1 {[%clk
0:01:35.3]} 22... Rxc5 {[%clk 0:02:30]} 23. Rxc5 {[%clk 0:01:28.2]} 23... Qd6
{[%clk 0:02:19.7]} 24. Qc3 {[%clk 0:01:22.3]} 24... Qf6 {[%clk 0:02:14.6]} 25.
f3 {[%clk 0:00:42.2]} 25... Be6 {[%clk 0:02:11.4]} 26. Rc7 {[%clk 0:00:41.7]}
26... Kh6 {[%clk 0:02:10.4]} 27. Qd2 {[%clk 0:00:39.2]} 27... g5 {[%clk
0:02:05]} 28. Rc1 {[%clk 0:00:35.5]} 28... exf3 {[%clk 0:02:00.9]} 29. Bxf3
{[%clk 0:00:35.4]} 29... Kg7 {[%clk 0:02:00.5]} 30. Rf1 {[%clk 0:00:34.9]} 30...
Qh6 {[%clk 0:01:57.1]} 31. Be2 {[%clk 0:00:25.3]} 31... g4 {[%clk 0:01:52.7]}
32. Rxf8 {[%clk 0:00:24.6]} 32... Kxf8 {[%clk 0:01:53.6]} 33. Qd3 {[%clk
0:00:21.6]} 33... Qf6 {[%clk 0:01:51.8]} 34. Qc3 {[%clk 0:00:20.3]} 34... Kg7
{[%clk 0:01:49.4]} 35. Nf1 {[%clk 0:00:18.9]} 35... Nf5 {[%clk 0:01:48.6]} 36.
Qc7+ {[%clk 0:00:17.7]} 36... Kg6 {[%clk 0:01:49.2]} 37. Qe5 {[%clk 0:00:16.9]}
37... Nxd4 {[%clk 0:01:47]} 38. Bd3+ {[%clk 0:00:16.7]} 38... Nf5 {[%clk
0:01:34.3]} 39. Qc7 {[%clk 0:00:15.8]} 39... Qd4+ {[%clk 0:01:33.8]} 0-1